bitfinex-derivatives/quotes_SOLF0:USTF0_20241226
["timestamp","ask_amount","ask_price","bid_price","bid_amount"]
[1735217853599,3.1,188.98,188.97,2.6487]
[1735217855595,10.79991816,188.98,188.92,7.69991816]
[1735217856497,10.79991816,188.98,188.96,2.6488]
[1735217857998,10.79991816,188.98,188.87,1.6374]
[1735217858191,7.69991816,188.95,188.87,1.6374]
[1735217858395,7.69991816,188.95,188.88,7.69991816]
[1735217858698,10.34891816,188.95,188.9,2.6496]
[1735217859199,2.6496,188.91,188.86,2.6501]
[1735217859398,3.1,188.9,188.86,2.6501]
[1735217860997,10.79991816,188.9,188.86,2.6501]
[1735217861495,3.1,188.9,188.86,2.6501]
[1735217862696,3.1,188.9,188.86,7.69991816]
[1735217862893,3.1,188.91,188.89,7.69991816]
[1735217863098,15.04485333,188.96,188.89,7.69991816]
[1735217863302,3.1,188.95,188.91,10.34931816]
[1735217864093,3.1,188.95,188.91,7.69991816]
[1735217864903,3.1,188.95,188.93,7.69991816]
[1735217865194,3.1,188.95,188.94,2.6491]
[1735217865594,3.1,188.99,188.93,7.69991816]
[1735217866897,7.34493517,189.04,188.93,7.69991816]
[1735217867095,7.69991816,189.02,188.95,7.69991816]
[1735217867796,7.69991816,189.02,188.97,2.6485]
[1735217868102,7.69991816,189.0,188.95,7.69991816]
[1735217868600,7.69991816,189.0,188.93,7.69991816]
[1735217869300,7.69991816,189.0,188.96,2.6487]
[1735217869499,7.69991816,189.0,188.93,7.69991816]
[1735217869896,7.69991816,189.02,188.99,2.6483]
[1735217871097,7.69991816,189.02,188.95,7.69991816]
[1735217871693,7.69991816,189.02,188.98,2.6484]
[1735217872804,3.1,189.03,188.88,4.8163]
[1735217873099,7.69991816,188.97,188.9,7.69991816]
[1735217873299,3.1,188.96,188.9,7.69991816]
[1735217873701,3.1,188.96,188.92,2.6493]
[1735217873902,3.1,188.96,188.9,7.69991816]
[1735217875607,3.1,188.96,188.93,2.6492]
[1735217876599,10.34881816,188.95,188.9,2.6496]
[1735217879500,10.34881816,188.95,188.88,7.69991816]
[1735217879808,10.34881816,188.95,188.91,2.6495]
[1735217880003,7.69991816,188.95,188.91,2.6495]
[1735217881102,10.34891816,188.95,188.91,2.6495]
[1735217881604,7.69991816,188.95,188.91,2.6495]
[1735217882307,7.69991816,188.95,188.88,7.69991816]
[1735217882308,10.34891816,188.95,188.9,2.6496]
[1735217883411,2.6491,188.94,188.89,2.6497]
[1735217884111,2.6491,188.94,188.88,7.69991816]
[1735217884408,2.6491,188.94,188.9,2.6496]
[1735217885506,7.69991816,188.95,188.9,2.6496]
[1735217885813,10.79991816,188.96,188.9,7.69991816]
[1735217886508,10.79991816,188.96,188.91,2.6494]
[1735217886705,10.79991816,188.96,188.9,7.69991816]
[1735217888207,13.44871816,188.96,188.92,2.6493]
[1735217891219,10.79991816,188.96,188.93,2.6492]
[1735217891612,7.69991816,188.96,188.93,2.6492]
[1735217891813,3.16,188.95,188.93,2.6492]
[1735217892113,3.16,188.95,188.87,4.6886]
[1735217892114,7.34493517,189.01,188.92,7.69991816]
[1735217892318,10.50493517,189.01,188.94,7.69991816]
[1735217893111,10.50493517,189.01,188.96,7.69991816]
[1735217893316,3.16,189.01,189.0,2.6482]
[1735217894710,3.16,189.01,188.98,2.6484]
[1735217897113,3.16,189.01,188.99,2.6483]
[1735217898716,3.16,189.01,189.0,2.6482]
[1735217900620,10.85991816,189.01,188.98,2.6485]
[1735217901424,10.85991816,189.01,188.99,2.6484]
[1735217902519,10.85991816,189.01,189.0,2.6482]
[1735217904422,10.85991816,189.01,188.95,7.69991816]
[1735217904623,10.85991816,189.01,188.99,2.6482]
[1735217907034,3.16,189.01,189.0,2.6482]
[1735217908736,10.61083517,189.06,189.03,2.6478]
[1735217908933,10.85991816,189.05,189.03,2.6478]
[1735217909129,7.34493517,189.06,189.01,7.69991816]
[1735217909330,3.16,189.05,189.01,7.69991816]
[1735217909931,3.16,189.05,189.04,2.6477]
[1735217911135,3.16,189.05,189.03,2.6478]
[1735217913232,3.16,189.05,189.04,2.6477]
[1735217914135,7.34493517,189.11,189.02,7.69991816]
[1735217914335,7.69991816,189.09,189.02,7.69991816]
[1735217915033,7.69991816,189.09,189.04,2.6477]
[1735217915334,3.12,189.08,189.02,7.69991816]
[1735217915936,3.12,189.08,189.04,7.69991816]
[1735217916934,55.1,189.12,189.04,7.69991816]
[1735217917140,7.69991816,189.1,189.04,7.69991816]
[1735217917336,7.69991816,189.1,189.06,2.6474]
[1735217917637,3.12,189.09,189.03,7.69991816]
[1735217918440,5.767,189.09,189.04,2.6476]
[1735217918740,3.12,189.09,189.03,7.69991816]
[1735217919442,3.12,189.09,189.05,2.6475]
[1735217921437,5.767,189.09,189.05,2.6475]
[1735217923343,3.12,189.09,189.03,7.69991816]
[1735217923544,10.81991816,189.09,189.06,2.6474]
[1735217923744,10.81991816,189.09,189.03,7.69991816]
[1735217924443,13.46691816,189.09,189.05,2.6475]
[1735217925145,10.81991816,189.09,189.03,7.69991816]
[1735217925345,10.81991816,189.09,189.06,2.6473]
[1735217925840,10.81991816,189.09,189.03,7.69991816]
[1735217926144,10.81991816,189.09,189.07,2.6471]
[1735217931547,10.81991816,189.09,189.06,2.6473]
[1735217932949,10.81991816,189.09,189.07,2.6472]
[1735217937049,3.12,189.09,189.05,7.69991816]
[1735217937350,7.69991816,189.08,189.03,7.69991816]
[1735217938447,7.69991816,189.08,189.05,2.6475]
[1735217940852,13.46691816,189.09,189.05,2.6475]
[1735217941355,10.81991816,189.09,189.05,2.6475]
[1735217941554,10.81991816,189.09,189.06,2.6474]
[1735217941858,10.81991816,189.09,189.05,7.69991816]
[1735217942858,3.12,189.09,189.05,7.69991816]
[1735217943657,3.12,189.09,189.08,2.6471]
[1735217944157,3.12,189.09,188.96,36.63167564]
[1735217944460,3.12,189.09,189.05,7.69991816]
[1735217944858,3.12,189.09,189.07,2.6471]
[1735217946456,3.12,189.09,189.08,2.6471]
[1735217947858,37.11201605,189.11,189.08,2.6471]
[1735217948064,3.12,189.1,189.08,2.6471]
[1735217948362,3.12,189.1,189.05,7.69991816]
[1735217948563,3.12,189.1,189.07,2.6472]
[1735217949565,10.46493517,189.1,189.07,2.6472]
[1735217950561,3.12,189.1,189.07,2.6472]
[1735217952367,10.46493517,189.1,189.07,2.6472]
[1735217953268,3.12,189.1,189.07,2.6472]
[1735217954467,3.12,189.1,189.06,7.69991816]
[1735217954468,7.69991816,189.09,189.06,2.6474]
[1735217956368,13.11173517,189.1,189.06,2.6474]
[1735217956564,10.46493517,189.1,189.06,2.6474]
[1735217956763,32.53209789,189.1,189.08,2.6471]
[1735217957868,3.12,189.1,189.08,2.6471]
[1735217958866,10.46493517,189.1,189.08,2.6471]
[1735217961974,10.46493517,189.1,189.09,2.647]
[1735217963475,23.89445875,189.1,189.09,2.647]
[1735217970979,23.89445875,189.1,189.05,7.69991816]
[1735217971179,7.69991816,189.07,188.97,36.62907934]
[1735217971384,7.69991816,189.06,189.01,7.69991816]
[1735217971585,3.12,189.05,189.01,7.69991816]
[1735217973486,3.12,189.05,189.04,2.6477]
[1735217974689,3.12,189.05,189.03,2.6477]
[1735217977092,7.34493517,189.07,188.97,36.62907934]
[1735217977498,7.34493517,189.07,189.06,7.69991816]
[1735217978491,22.06716272,189.08,189.06,7.69991816]
[1735217978687,3.1,189.09,189.06,7.69991816]
[1735217979397,3.1,189.09,189.07,2.6473]
[1735217982191,3.1,189.09,189.08,2.6471]
[1735217992604,7.69991816,189.11,189.08,2.6471]
[1735217992804,3.1,189.1,189.08,2.6471]
[1735217994400,3.1,189.1,188.95,10.1449]
[1735217994600,7.69991816,189.07,188.95,10.1449]
[1735217994802,7.69991816,189.07,189.02,7.69991816]
[1735217995303,7.69991816,189.07,189.05,2.6474]
[1735217995900,7.69991816,189.07,189.03,2.6477]
[1735217996105,7.69991816,189.07,189.02,7.69991816]
[1735217996511,10.34691816,189.09,189.05,2.6475]
[1735217996809,7.34493517,189.08,189.05,2.6475]
[1735217997498,7.69991816,189.07,189.03,2.6477]
[1735217998105,2.6472,189.08,189.04,2.6476]
[1735217998309,7.34493517,189.09,189.04,7.69991816]
[1735217998809,20.79165333,189.1,189.04,7.69991816]
[1735217999005,20.79165333,189.1,189.06,2.6473]
[1735217999907,20.79165333,189.1,189.07,2.6472]
[1735217999908,3.1,189.09,189.07,2.6472]
[1735218001004,3.1,189.09,189.08,2.6471]
[1735218001611,3.1,189.09,189.07,2.6472]
[1735218002817,7.34493517,189.11,189.08,7.69991816]
[1735218003114,7.34493517,189.11,189.1,7.69991816]
[1735218003317,7.34493517,189.11,189.09,2.6469]
[1735218003612,7.34493517,189.11,189.01,4.6343]
[1735218003815,3.72,189.1,189.01,4.6343]
[1735218004007,3.72,189.1,189.07,7.69991816]
[1735218004208,3.72,189.1,189.01,4.6343]
[1735218004608,3.72,189.1,189.03,7.69991816]
[1735218004812,7.69991816,189.09,189.01,4.6343]
[1735218005014,7.69991816,189.09,189.06,2.6474]
[1735218005706,3.72,189.1,189.02,2.6479]
[1735218005707,7.69991816,189.07,189.02,2.6479]
[1735218005909,7.69991816,189.07,189.02,10.34781816]
[1735218006118,7.69991816,189.09,189.04,7.69991816]
[1735218006309,7.69991816,189.08,189.04,7.69991816]
[1735218006517,7.69991816,189.08,189.03,2.6478]
[1735218006914,7.69991816,189.08,189.02,7.69991816]
[1735218007116,7.69991816,189.06,188.84,29.35947166]
[1735218007318,7.69991816,189.06,189.0,7.69991816]
[1735218008022,7.69991816,189.06,189.0,10.34811816]
[1735218008708,7.34493517,189.08,189.02,7.69991816]
[1735218008915,3.72,189.07,189.03,7.69991816]
[1735218009211,3.72,189.07,189.06,10.34731816]
[1735218012020,3.72,189.07,188.93,4.8611]
[1735218012223,7.69991816,189.06,189.0,7.69991816]
[1735218012720,7.69991816,189.06,189.01,2.6481]
[1735218016217,7.69991816,189.08,189.04,2.6477]
[1735218016425,7.36751159,189.09,189.05,7.69991816]
[1735218016615,3.72,189.08,189.05,7.69991816]
[1735218018123,3.72,189.08,188.93,4.8611]
[1735218018323,7.69991816,189.07,189.02,7.69991816]
[1735218018519,3.72,189.08,189.02,7.69991816]
[1735218019119,7.69991816,189.09,189.04,7.69991816]
[1735218019323,3.72,189.08,189.04,7.69991816]
[1735218019524,7.69991816,189.07,189.05,2.6475]
[1735218020224,3.72,189.08,189.05,2.6475]
[1735218020727,3.72,189.08,189.07,2.6473]
[1735218021130,3.72,189.08,189.06,7.69991816]
[1735218021531,3.72,189.08,189.06,10.34721816]
[1735218022023,7.69991816,189.09,189.04,2.6475]
[1735218022222,7.69991816,189.07,189.04,2.6475]
[1735218022521,3.72,189.06,189.04,2.6475]
[1735218023027,3.72,189.06,189.02,7.69991816]
[1735218023228,3.72,189.06,189.03,2.6478]
[1735218023920,7.69991816,189.05,189.02,2.6479]
[1735218024519,7.69991816,189.05,188.94,1.6799]
[1735218024725,7.69991816,189.05,188.99,7.69991816]
[1735218025118,7.69991816,189.05,189.0,2.6481]
[1735218025317,7.69991816,189.03,188.98,7.69991816]
[1735218025524,7.69991816,189.03,188.99,2.6484]
[1735218026628,7.69991816,189.03,188.98,7.69991816]
[1735218026629,7.69991816,189.05,189.02,2.6479]
[1735218028030,7.69991816,189.05,188.94,1.6799]
[1735218028331,7.69991816,189.05,189.01,2.6481]
[1735218028731,7.69991816,189.05,189.02,2.6479]
[1735218029727,7.69991816,189.05,189.03,2.6477]
[1735218030322,3.72,189.06,189.0,7.69991816]
[1735218030525,7.36751159,189.1,189.02,7.69991816]
[1735218030728,11.41991816,189.09,189.02,7.69991816]
[1735218030926,7.69991816,189.07,188.94,1.6799]
[1735218031230,7.69991816,189.07,189.02,7.69991816]
[1735218032529,7.69991816,189.07,189.04,2.6476]
[1735218033830,10.34721816,189.07,189.01,2.648]
[1735218034031,7.69991816,189.05,188.99,7.69991816]
[1735218034424,7.69991816,189.05,189.01,2.648]
[1735218034733,7.69991816,189.05,188.99,7.69991816]
[1735218035428,7.69991816,189.05,189.02,2.6479]
[1735218035831,7.69991816,189.05,188.99,7.69991816]
[1735218036332,7.69991816,189.03,188.97,7.69991816]
[1735218036530,3.86,189.02,188.97,7.69991816]
[1735218036933,7.69991816,189.01,188.95,7.69991816]
[1735218037536,7.69991816,189.01,188.96,2.6488]
[1735218038236,7.69991816,188.99,188.94,2.649]
[1735218038832,10.34831816,188.99,188.94,2.649]
[1735218039935,3.86,189.02,188.93,7.69991816]
[1735218040129,7.69991816,189.0,188.95,7.69991816]
[1735218040733,3.86,189.02,188.98,2.6484]
[1735218040938,11.55991816,189.01,188.98,2.6484]
[1735218041237,3.86,189.0,188.98,2.6484]
[1735218041741,7.69991816,189.01,188.95,7.69991816]
[1735218041936,3.86,189.02,188.99,7.69991816]
[1735218042841,7.69991816,189.05,189.02,2.6479]
[1735218043041,3.86,189.03,189.02,2.6479]
[1735218046539,7.69991816,189.05,189.02,2.6479]
[1735218046743,3.86,189.04,189.02,2.6479]
[1735218047950,3.86,189.04,188.99,7.69991816]
[1735218049456,3.86,189.04,189.01,2.6481]
[1735218049751,3.86,189.04,188.99,7.69991816]
[1735218050563,7.69991816,189.06,189.03,2.6478]
[1735218050849,3.86,189.05,189.01,7.69991816]
[1735218051060,3.86,189.05,189.04,2.6477]
[1735218054655,7.69991816,189.06,189.04,2.6477]
[1735218054860,3.86,189.05,189.04,2.6477]
[1735218055357,3.86,189.05,189.03,2.6478]
[1735218057148,3.86,189.05,189.02,2.6479]
[1735218057453,3.86,189.04,189.02,2.6479]
[1735218060660,7.69991816,189.06,189.01,7.69991816]
[1735218060859,3.86,189.05,189.03,2.6478]
[1735218065460,3.86,189.05,189.04,2.6477]
[1735218066064,7.69991816,189.08,189.01,7.69991816]
[1735218066263,3.68,189.07,189.01,7.69991816]
[1735218067264,3.68,189.07,189.05,2.6475]
[1735218067656,7.69991816,189.08,189.05,2.6475]
[1735218067859,3.68,189.07,189.05,2.6475]
[1735218068361,11.37991816,189.07,189.05,2.6475]
[1735218069464,11.37991816,189.07,189.04,2.6476]
[1735218069660,3.68,189.07,189.01,7.69991816]
[1735218069861,7.69991816,189.05,189.01,7.69991816]
[1735218070566,7.69991816,189.05,188.99,7.69991816]
[1735218070761,7.69991816,189.05,189.02,2.6478]
[1735218072658,7.69991816,189.05,189.03,2.6478]
[1735218073259,3.68,189.04,189.03,2.6478]
[1735218076664,11.37991816,189.04,188.91,3.68]
[1735218076867,11.37991816,189.04,188.98,7.69991816]
[1735218077163,7.69991816,189.02,188.99,2.6484]
[1735218077360,7.69991816,189.02,188.96,7.69991816]
[1735218077565,7.69991816,189.0,188.89,38.18045995]
[1735218077766,7.69991816,188.98,188.89,38.18045995]
[1735218077967,3.68,188.97,188.92,7.69991816]
[1735218078368,3.68,188.97,188.93,2.6491]
[1735218078665,7.69991816,188.96,188.93,2.6491]
[1735218079771,3.68,188.97,188.93,7.69991816]
[1735218080063,3.68,188.97,188.96,2.6488]
[1735218081968,3.68,188.97,188.89,38.18045995]
[1735218082171,3.68,188.97,188.94,7.69991816]
[1735218082367,3.68,188.97,188.92,7.69991816]
[1735218082571,11.37991816,188.97,188.92,10.34921816]
[1735218083067,2.6488,188.96,188.91,2.6495]
[1735218083268,11.37991816,188.97,188.9,7.69991816]
[1735218083269,7.69991816,188.95,188.9,7.69991816]
[1735218083573,11.37991816,188.97,188.9,7.69991816]
[1735218083769,7.69991816,188.95,188.9,7.69991816]
[1735218084970,10.34901816,188.95,188.9,10.34941816]
[1735218085174,7.69991816,188.95,188.9,7.69991816]
[1735218085571,7.69991816,188.95,188.91,2.6494]
[1735218085767,7.69991816,188.95,188.89,7.69991816]
[1735218086170,7.69991816,188.95,188.89,10.34951816]
[1735218087078,2.6491,188.94,188.89,10.34951816]
[1735218087472,7.69991816,188.95,188.9,2.6496]
[1735218087876,10.34891816,188.95,188.9,2.6496]
[1735218088072,7.69991816,188.95,188.89,7.69991816]
[1735218088475,10.34921816,188.93,188.88,2.6498]
[1735218091283,7.69991816,188.93,188.88,2.6498]
[1735218091483,7.69991816,188.93,188.89,2.6497]
[1735218091983,10.34911816,188.93,188.87,7.69991816]
[1735218092882,10.34911816,188.93,188.88,2.6498]
[1735218093082,3.58,188.92,188.87,7.69991816]
[1735218093484,3.58,188.92,188.88,2.6498]
[1735218093682,3.58,188.92,188.87,7.69991816]
[1735218093879,3.58,188.92,188.89,7.69991816]
[1735218094078,7.69991816,188.97,188.93,2.6491]
[1735218094286,3.58,188.94,188.93,2.6491]
[1735218096185,3.58,188.94,188.92,2.6493]
[1735218096385,3.58,188.94,188.89,7.69991816]
[1735218096787,3.58,188.94,188.9,2.6495]
[1735218097087,7.69991816,188.93,188.9,2.6495]
[1735218098386,7.69991816,188.93,188.88,2.6499]
[1735218099381,10.34921816,188.93,188.88,2.6499]
[1735218099988,7.69991816,188.93,188.89,2.6498]
[1735218102685,3.58,188.92,188.89,2.6498]
[1735218102881,3.58,188.92,188.87,7.69991816]
[1735218102882,3.58,188.92,188.91,2.6495]
[1735218103991,3.58,188.93,188.92,2.6494]
[1735218104186,7.69991816,188.96,188.89,7.69991816]
[1735218104491,3.58,188.95,188.89,7.69991816]
[1735218105389,3.58,188.95,188.93,2.6491]
[1735218105589,3.58,188.95,188.89,7.69991816]
[1735218105987,3.58,188.95,188.91,7.69991816]
[1735218106689,3.58,188.95,188.82,3.58]
[1735218106990,11.27991816,188.95,188.89,7.69991816]
[1735218107289,11.27991816,188.95,188.94,2.6491]
[1735218107290,3.58,188.95,188.94,2.6491]
[1735218107989,7.69991816,188.99,188.94,2.6491]
[1735218108286,3.58,188.98,188.94,2.6491]
[1735218109290,7.69991816,188.97,188.93,2.6492]
[1735218112491,7.69991816,188.95,188.91,2.6495]
[1735218113991,7.69991816,188.95,188.89,7.69991816]
[1735218114191,7.69991816,188.95,188.92,2.6493]
[1735218116995,2.6488,188.96,188.92,2.6493]
[1735218117295,17.71612975,188.97,188.92,2.6493]
[1735218118097,3.58,188.96,188.91,7.69991816]
[1735218118294,10.94751159,188.97,188.93,7.69991816]
[1735218118493,7.36751159,188.97,188.95,7.69991816]
[1735218119289,7.36751159,188.97,188.96,2.6488]
[1735218119496,3.58,188.98,188.95,7.69991816]
[1735218119692,7.36751159,189.02,188.98,2.6485]
[1735218119997,7.36751159,189.02,188.95,7.69991816]
[1735218120198,11.27991816,189.03,188.95,7.69991816]
[1735218120394,7.69991816,188.99,188.91,5.37286574]
[1735218120600,7.69991816,188.97,188.91,5.37286574]
[1735218120796,11.27991816,188.97,188.91,5.37286574]
[1735218121093,11.27991816,188.97,188.94,2.6489]
[1735218121598,11.27991816,188.97,188.95,2.6489]
[1735218121798,3.58,188.97,188.95,2.6489]
[1735218121988,3.58,188.97,188.92,7.69991816]
[1735218122796,7.36751159,189.0,188.92,7.69991816]
[1735218122993,3.52,189.0,188.94,7.69991816]
[1735218123595,3.52,189.0,188.99,2.6484]
[1735218125402,84.51004637,189.05,188.98,7.69991816]
[1735218125599,3.52,189.04,189.02,2.6479]
[1735218125804,11.21991816,189.04,188.91,5.37286574]
[1735218126099,7.69991816,189.02,188.99,2.6483]
[1735218126298,7.69991816,189.02,188.96,7.69991816]
[1735218126703,7.69991816,189.02,188.99,2.6483]
[1735218129309,7.69991816,189.0,188.99,2.6483]
[1735218132413,7.69991816,189.0,188.94,7.69991816]
[1735218132709,7.69991816,188.98,188.91,13.0727839]
[1735218132909,7.69991816,188.96,188.91,13.0727839]
[1735218133111,7.69991816,188.96,188.95,2.6489]
[1735218133810,2.6495,188.92,188.86,2.6502]
[1735218134105,7.69991816,188.87,188.81,36.65727777]
[1735218134306,7.69991816,188.84,188.8,4.8549]
[1735218134513,7.69991816,188.84,188.79,29.4249575]
[1735218135613,7.69991816,188.84,188.76,88.27487252]
[1735218135614,7.69991816,188.82,188.76,7.69991816]
[1735218136112,7.69991816,188.84,188.78,7.69991816]
[1735218139411,7.69991816,188.84,188.81,2.6509]
[1735218139911,7.69991816,188.84,188.78,7.69991816]
[1735218140107,7.69991816,188.84,188.77,7.69991816]
[1735218140413,7.69991816,188.82,188.75,7.69991816]
[1735218140712,3.52,188.81,188.76,2.6515]
[1735218141213,3.52,188.81,188.75,7.69991816]
[1735218141408,7.69991816,188.8,188.75,7.69991816]
[1735218142111,7.69991816,188.8,188.75,2.6517]
[1735218142313,7.69991816,188.8,188.73,7.69991816]
[1735218143414,7.69991816,188.8,188.74,2.6517]
[1735218143613,7.69991816,188.8,188.73,7.69991816]
[1735218143812,6.171,188.81,188.7,3.2183]
[1735218143813,7.69991816,188.78,188.7,3.2183]
[1735218144014,7.69991816,188.78,188.72,10.35201816]
[1735218144916,7.69991816,188.78,188.72,2.6521]
[1735218145218,7.69991816,188.78,188.73,2.652]
[1735218145616,3.52,188.78,188.74,7.69991816]
[1735218145909,1.6333,188.84,188.76,7.69991816]
[1735218146106,3.52,188.83,188.78,7.69991816]
[1735218146508,11.21991816,188.83,188.8,2.6509]
[1735218146709,11.21991816,188.83,188.76,7.69991816]
[1735218146910,11.21991816,188.83,188.78,7.69991816]
[1735218147121,11.21991816,188.83,188.79,2.651]
[1735218149716,7.69991816,188.81,188.76,2.6515]
[1735218150614,10.35081816,188.81,188.76,2.6515]
[1735218150918,3.52,188.8,188.77,2.6515]
[1735218154218,3.52,188.8,188.75,7.69991816]
[1735218155518,3.52,188.8,188.77,2.6513]
[1735218156518,3.52,188.8,188.75,7.69991816]
[1735218156719,3.52,188.8,188.76,2.6515]
[1735218157517,6.1711,188.8,188.74,10.35161816]
[1735218157917,2.6513,188.78,188.74,2.6517]
[1735218159215,2.6515,188.77,188.73,2.652]
[1735218159618,7.69991816,188.79,188.72,7.69991816]
[1735218159814,7.69991816,188.79,188.68,36.67859148]
[1735218160123,7.69991816,188.79,188.73,7.69991816]
[1735218160619,1.609,188.84,188.75,2.6516]
[1735218160827,7.69991816,188.82,188.75,7.69991816]
[1735218161529,7.69991816,188.82,188.77,7.69991816]
[1735218161727,3.4,188.81,188.77,7.69991816]
[1735218162226,3.4,188.81,188.78,2.6513]
[1735218162626,3.4,188.81,188.77,7.69991816]
[1735218163224,3.4,188.81,188.8,2.651]
[1735218163426,3.4,188.81,188.77,7.69991816]
[1735218163626,3.4,188.81,188.79,2.6512]
[1735218166224,3.4,188.82,188.79,7.69991816]
[1735218166823,3.4,188.82,188.81,2.6509]
[1735218167424,55.08,188.89,188.79,7.69991816]
[1735218167628,7.69991816,188.87,188.81,7.69991816]
[1735218168031,3.4,188.86,188.85,2.6502]
[1735218168724,7.69991816,188.87,188.85,2.6502]
[1735218169030,3.4,188.86,188.85,2.6502]
[1735218169833,55.08,188.89,188.88,2.6499]
[1735218170128,66.17991816,188.89,188.83,7.69991816]
[1735218170337,7.69991816,188.87,188.74,3.1707]
[1735218170629,7.69991816,188.87,188.82,7.69991816]
[1735218171432,7.69991816,188.87,188.84,2.6505]
[1735218172930,7.69991816,188.87,188.82,7.69991816]
[1735218173434,7.69991816,188.87,188.85,2.6502]
[1735218173829,7.69991816,188.87,188.82,7.69991816]
[1735218174030,7.69991816,188.87,188.86,2.6502]
[1735218174226,7.69991816,188.87,188.82,7.69991816]
[1735218174433,7.69991816,188.87,188.85,2.6503]
[1735218175031,7.69991816,188.87,188.86,2.6502]
[1735218175228,66.17991816,188.89,188.86,2.6502]
[1735218175635,11.09991816,188.89,188.86,2.6502]
[1735218175928,7.5966,188.93,188.84,7.69991816]
[1735218176134,11.09991816,188.92,188.86,7.69991816]
[1735218176937,11.09991816,188.92,188.89,2.6498]
[1735218178527,7.69991816,188.92,188.89,2.6498]
[1735218178735,3.4,188.91,188.9,2.6496]
[1735218179533,3.4,188.91,188.87,2.6499]
[1735218183639,3.4,188.91,188.86,7.69991816]
[1735218183835,3.4,188.91,188.87,2.65]
[1735218184243,10.34931816,188.92,188.87,2.65]
[1735218184439,3.3,188.91,188.88,7.69991816]
[1735218185246,3.3,188.91,188.89,2.6498]
[1735218185948,7.69991816,188.94,188.89,2.6498]
[1735218186147,3.3,188.93,188.89,2.6498]
[1735218186542,7.69991816,188.92,188.89,2.6498]
[1735218186750,7.69991816,188.9,188.85,7.69991816]
[1735218186952,10.34971816,188.9,188.85,7.69991816]
[1735218187150,10.34971816,188.9,188.83,7.69991816]
[1735218187349,10.34971816,188.9,188.84,2.6504]
[1735218187748,7.69991816,188.88,188.84,2.6504]
[1735218187949,3.3,188.87,188.84,2.6504]
[1735218188151,7.69991816,188.86,188.83,2.6505]
[1735218188455,7.69991816,188.86,188.79,1.6462]
[1735218188647,7.69991816,188.86,188.8,7.69991816]
[1735218189454,10.35021816,188.86,188.81,2.6508]
[1735218190450,7.69991816,188.84,188.8,7.69991816]
[1735218192366,3.3,188.84,188.82,7.69991816]
[1735218192754,7.69991816,188.87,188.85,2.6503]
[1735218192957,3.3,188.86,188.85,2.6503]
[1735218193261,3.3,188.86,188.82,7.69991816]
[1735218193666,3.3,188.86,188.8,7.69991816]
[1735218194267,3.3,188.86,188.83,2.6506]
[1735218198873,3.3,188.86,188.82,7.69991816]
[1735218199171,3.3,188.86,188.83,2.6506]
[1735218199567,3.3,188.86,188.82,7.69991816]
[1735218199770,7.69991816,188.89,188.82,7.69991816]
[1735218199970,7.69991816,188.9,188.84,7.69991816]
[1735218200172,3.3,188.89,188.85,2.6502]
[1735218200379,3.3,188.89,188.84,7.69991816]
[1735218200573,3.3,188.89,188.75,3.3]
[1735218200871,3.3,188.89,188.84,7.69991816]
[1735218201068,3.3,188.89,188.86,2.6501]
[1735218201569,3.3,188.89,188.87,2.65]
[1735218201967,3.3,188.89,188.86,7.69991816]
[1735218202166,9.28621816,188.92,188.88,2.6498]
[1735218202472,3.3,188.91,188.86,7.69991816]
[1735218202674,8.88771159,188.96,188.88,7.69991816]
[1735218202870,7.69991816,188.94,188.88,7.69991816]
[1735218203570,7.69991816,188.94,188.9,2.6496]
[1735218203876,7.69991816,188.92,188.86,7.69991816]
[1735218204072,7.69991816,188.92,188.88,2.6499]
[1735218204466,10.34941816,188.92,188.87,2.6499]
[1735218205270,7.69991816,188.92,188.88,7.69991816]
[1735218205474,7.69991816,188.94,188.88,7.69991816]
[1735218206573,3.3,188.93,188.9,2.6496]
[1735218208477,7.69991816,188.92,188.9,2.6496]
[1735218209376,5.9492,188.93,188.9,2.6496]
[1735218210675,2.6492,188.93,188.89,2.6497]
[1735218210877,3.3,188.92,188.89,2.6497]
[1735218213981,3.3,188.91,188.89,2.6497]